bitfinex/quotes_SOLUSD_20240530
["timestamp","ask_amount","ask_price","bid_price","bid_amount"]
[1717111353049,18.09918654,167.69,167.57,77.9]
[1717111353371,18.09918654,167.69,167.58,16.1234]
[1717111356771,6.18727065,167.68,167.58,16.1234]
[1717111369481,6.18727065,167.68,167.56,6.3119]
[1717111370187,6.18727065,167.68,167.54,15.3816]
[1717111370369,6.18727065,167.68,167.52,8.4113]
[1717111370370,6.18727065,167.68,167.52,6.2027]
[1717111371576,18.09918654,167.67,167.5,649.4816]
[1717111372267,6.18464577,167.66,167.5,649.4816]
[1717111372789,6.18464577,167.66,167.51,60.0]
[1717111372997,6.18464577,167.66,167.51,77.9]
[1717111377400,18.09918654,167.65,167.51,77.9]
[1717111380595,18.09918654,167.65,167.51,17.9]
[1717111381497,18.09918654,167.65,167.49,20.109]
[1717111381792,18.09918654,167.65,167.49,80.109]
[1717111382293,18.09918654,167.65,167.49,115.969]
[1717111382698,6.18217441,167.64,167.51,60.0]
[1717111383302,6.18217441,167.64,167.51,62.2088]
[1717111383799,6.18217441,167.64,167.51,60.0]
[1717111388688,6.18217441,167.64,167.53,60.0]
[1717111390303,6.18217441,167.64,167.53,77.9]
[1717111390606,6.18217441,167.64,167.53,80.1084]
[1717111391413,6.18217441,167.64,167.53,77.9]
[1717111392309,6.18217441,167.64,167.55,60.0]
[1717111392800,6.18217441,167.64,167.54,17.9]
[1717111393194,6.18217441,167.64,167.52,2.2086]
[1717111393707,6.18217441,167.64,167.51,75.9167]
[1717111394013,6.18217441,167.64,167.52,2.2086]
[1717111396210,6.18217441,167.64,167.56,2.2081]
[1717111396412,6.18217441,167.64,167.53,77.9]
[1717111396617,6.18217441,167.64,167.53,80.1085]
[1717111397014,6.18217441,167.64,167.55,80.1082]
[1717111397322,6.18217441,167.64,167.55,77.9]
[1717111398917,6.18217441,167.64,167.54,6.0648]
[1717111399102,6.18217441,167.64,167.52,17.9]
[1717111399298,6.18217441,167.64,167.51,62.2087]
[1717111399606,6.18217441,167.64,167.53,62.2085]
[1717111400809,6.18217441,167.64,167.53,2.2085]
[1717111401123,6.18217441,167.64,167.52,2.2086]
[1717111403921,6.18217441,167.64,167.54,60.0]
[1717111408219,6.18217441,167.64,167.54,17.9]
[1717111408425,6.18217441,167.64,167.53,2.2085]
[1717111408624,6.18217441,167.64,167.53,20.1085]
[1717111413826,6.18217441,167.64,167.63,2.2072]
[1717111414222,3.12074475,167.75,167.64,2.2071]
[1717111414417,7.0190035,167.79,167.62,77.9]
[1717111414418,0.777514,167.79,167.62,77.9]
[1717111414623,6.17942738,167.76,167.63,2.2071]
[1717111414810,0.777514,167.79,167.63,2.2071]
[1717111415222,6.17849628,167.76,167.63,2.2071]
[1717111415425,0.777514,167.79,167.63,2.2071]
[1717111415805,6.17640109,167.76,167.63,2.2071]
[1717111416131,0.777514,167.79,167.64,2.207]
[1717111416330,6.17516205,167.77,167.64,2.207]
[1717111417028,6.17516205,167.77,167.65,2.2069]
[1717111418130,6.17516205,167.77,167.65,77.9]
[1717111418323,6.17516205,167.77,167.65,80.1069]
[1717111418516,0.777514,167.79,167.65,80.1069]
[1717111418914,0.777514,167.79,167.65,77.9]
[1717111419526,0.777514,167.79,167.67,2.2066]
[1717111419728,0.777514,167.79,167.69,2.2064]
[1717111420034,0.777514,167.79,167.69,62.2064]
[1717111420914,0.777514,167.79,167.69,60.0]
[1717111421108,0.777514,167.79,167.7,2.2062]
[1717111421828,0.777514,167.79,167.69,20.1064]
[1717111422015,0.777514,167.79,167.69,80.1064]
[1717111423408,0.777514,167.79,167.69,2.2064]
[1717111423915,0.777514,167.79,167.69,62.2064]
[1717111424216,0.777514,167.79,167.69,2.2064]
[1717111424431,0.777514,167.79,167.67,77.9]
[1717111424622,0.777514,167.79,167.67,80.1066]
[1717111424931,0.777514,167.79,167.68,2.2065]
[1717111426137,0.777514,167.79,167.69,2.2064]
[1717111426724,0.777514,167.79,167.67,2.2066]
[1717111427131,0.777514,167.79,167.68,2.2065]
[1717111429930,0.777514,167.79,167.63,77.9]
[1717111430233,0.777514,167.79,167.66,2.2067]
[1717111430942,0.777514,167.79,167.63,77.9]
[1717111431248,0.777514,167.79,167.67,2.2067]
[1717111431634,0.777514,167.79,167.66,2.2067]
[1717111431943,6.17190368,167.78,167.66,2.2067]
[1717111432524,6.17190368,167.78,167.67,2.2067]
[1717111433645,6.17190368,167.78,167.66,2.2067]
[1717111435641,6.17190368,167.78,167.65,80.1069]
[1717111435956,6.17190368,167.78,167.65,20.1069]
[1717111437667,0.777514,167.79,167.65,20.1069]
[1717111437843,0.777514,167.79,167.66,2.2068]
[1717111438754,0.777514,167.79,167.65,2.2069]
[1717111439751,0.777514,167.79,167.64,2.207]
[1717111441946,0.777514,167.79,167.65,2.2069]
[1717111442648,0.777514,167.79,167.64,2.207]
[1717111442846,0.777514,167.79,167.63,2.2071]
[1717111444143,45.777514,167.79,167.62,2.2073]
[1717111444343,45.777514,167.79,167.61,2.2074]
[1717111445069,45.777514,167.79,167.6,636.3075]
[1717111445364,18.09918654,167.78,167.6,636.3075]
[1717111445590,45.0,167.77,167.6,636.3075]
[1717111447873,45.0,167.77,167.6,2.2075]
[1717111448248,6.18384355,167.76,167.6,2.2075]
[1717111448657,6.18384355,167.76,167.59,2.2077]
[1717111449057,6.18384355,167.76,167.57,93.0324]
[1717111449058,6.18384355,167.76,167.6,2.2076]
[1717111449466,6.18384355,167.76,167.57,93.0324]
[1717111449467,6.18384355,167.76,167.58,2.2077]
[1717111449969,6.18384355,167.76,167.59,2.2077]
[1717111450170,45.0,167.75,167.59,2.2077]
[1717111450869,45.0,167.75,167.58,2.2078]
[1717111451573,6.18384355,167.76,167.59,62.2077]
[1717111454555,6.18384355,167.76,167.59,2.2077]
[1717111455680,24.28303009,167.76,167.59,2.2077]
[1717111455980,24.28303009,167.76,167.58,2.2078]
[1717111456350,45.0,167.75,167.58,2.2078]
[1717111456975,45.0,167.75,167.57,2.2079]
[1717111458775,6.1928019,167.74,167.57,2.2079]
[1717111462357,24.29198844,167.74,167.57,2.2079]
[1717111463066,24.29198844,167.74,167.56,2.208]
[1717111465281,24.29198844,167.74,167.57,2.208]
[1717111472092,6.1928019,167.74,167.57,2.208]
[1717111472389,24.29198844,167.74,167.57,2.208]
[1717111473074,24.29198844,167.74,167.56,2.208]
[1717111473475,24.29198844,167.74,167.57,0.76188756]
[1717111475606,45.0,167.73,167.57,0.76188756]
[1717111476380,6.19748399,167.72,167.57,0.76188756]
[1717111476789,6.19748399,167.72,167.56,0.76274782]
[1717111477500,45.0,167.71,167.55,8.87428351]
[1717111477991,45.0,167.71,167.53,253.2]
[1717111479990,45.0,167.71,167.51,11.08298351]
[1717111480689,45.0,167.71,167.52,2.2086]
[1717111482797,18.09918654,167.7,167.52,2.2086]
[1717111483183,45.0,167.69,167.52,2.2086]
[1717111483583,45.0,167.69,167.51,8.87891489]
[1717111483780,45.0,167.69,167.5,8.87891489]
[1717111484003,45.0,167.69,167.49,2.209]
[1717111484579,45.0,167.69,167.5,2.2089]
[1717111484787,45.0,167.69,167.49,2.209]
[1717111486088,45.0,167.69,167.48,11.09269351]
[1717111486289,18.09918654,167.68,167.47,11.09279351]
[1717111486494,45.0,167.67,167.47,11.09279351]
[1717111486682,45.0,167.67,167.47,8.88349351]
[1717111486994,45.0,167.67,167.48,2.2092]
[1717111487379,45.0,167.67,167.47,11.09269351]
[1717111488178,45.0,167.67,167.47,2.2092]
[1717111488378,45.0,167.67,167.47,11.09269351]
[1717111489200,45.0,167.67,167.47,2.2092]
[1717111489501,45.0,167.67,167.47,11.09269351]
[1717111489996,18.09918654,167.66,167.47,2.2092]
[1717111490201,45.0,167.65,167.47,2.2092]
[1717111495881,45.0,167.65,167.48,2.2092]
[1717111496992,6.20343991,167.64,167.48,2.2092]
[1717111497188,6.20343991,167.64,167.49,2.209]
[1717111498223,6.20343991,167.64,167.48,2.2091]
[1717111501908,6.20343991,167.64,167.49,62.209]
[1717111502120,6.20343991,167.64,167.5,2.2088]
[1717111502411,6.20343991,167.64,167.49,62.209]
[1717111502625,6.20343991,167.64,167.49,2.209]
[1717111502799,6.20343991,167.64,167.48,2.2091]
[1717111503420,6.20343991,167.64,167.47,2.2093]
[1717111506717,6.20343991,167.64,167.48,2.2091]
[1717111508113,6.20343991,167.64,167.47,2.2093]
[1717111508319,45.0,167.63,167.46,262.08462689]
[1717111508796,45.0,167.63,167.46,264.29402689]
[1717111509114,6.20723723,167.62,167.46,264.29402689]
[1717111509308,6.20723723,167.62,167.46,8.88462689]
[1717111509822,6.20723723,167.62,167.45,11.09412689]
[1717111510197,6.20723723,167.62,167.45,8.88462689]
[1717111510513,45.0,167.61,167.45,8.88462689]
[1717111511115,45.0,167.61,167.44,2.2097]
[1717111511301,45.0,167.61,167.44,11.09432689]
[1717111511500,45.0,167.61,167.43,11.09442689]
[1717111512422,45.0,167.61,167.44,8.88462689]
[1717111516222,45.0,167.61,167.44,11.09432689]
[1717111516404,63.09918654,167.61,167.44,11.09432689]
[1717111516722,63.09918654,167.61,167.44,8.88462689]
[1717111519200,63.09918654,167.61,167.45,8.88462689]
[1717111519400,6.23419496,167.6,167.45,8.88462689]
[1717111519921,6.23419496,167.6,167.44,8.88462689]
[1717111521905,6.23419496,167.6,167.43,71.09442689]
[1717111522204,6.23419496,167.6,167.44,8.88462689]
[1717111523222,6.23419496,167.6,167.45,8.88462689]
[1717111523521,6.23419496,167.6,167.45,2.2095]
[1717111523902,6.23419496,167.6,167.45,11.09412689]
[1717111524499,6.23419496,167.6,167.45,8.88462689]
[1717111524909,6.23419496,167.6,167.46,8.88462689]
[1717111525733,6.23419496,167.6,167.46,86.78462689]
[1717111525915,18.09918654,167.61,167.47,8.88462689]
[1717111526125,18.09918654,167.61,167.48,0.8549394]
[1717111526610,24.3320414,167.64,167.48,0.8549394]
[1717111526811,24.3320414,167.64,167.48,60.8549394]
[1717111527112,24.3320414,167.64,167.49,0.85592929]
[1717111529435,24.3320414,167.64,167.49,9.74055618]
[1717111537138,6.23285486,167.64,167.49,9.74055618]
[1717111537922,6.23285486,167.64,167.5,60.0]
[1717111538133,6.23285486,167.64,167.51,16.20954895]
[1717111538317,18.09918654,167.66,167.53,8.6331]
[1717111538633,27.02464882,167.72,167.54,0.89434635]
[1717111538634,24.33245896,167.69,167.54,0.89434635]
[1717111540142,24.33245896,167.69,167.54,1.67131434]
[1717111540439,24.33245896,167.69,167.55,1.67121458]
[1717111542318,6.23327242,167.69,167.56,60.0]
[1717111542524,18.09918654,167.73,167.58,6.6019]
[1717111542723,18.09918654,167.73,167.59,1.67116956]
[1717111543029,24.33070534,167.73,167.59,1.67116956]
[1717111548942,24.33070534,167.73,167.58,6.6019]
[1717111551934,45.0,167.72,167.58,6.6019]
[1717111553147,6.23221413,167.71,167.58,6.6019]
[1717111557449,45.0,167.7,167.58,6.6019]
[1717111561436,18.9149445,167.69,167.58,6.6019]
[1717111561641,45.0,167.68,167.58,6.6019]
[1717111563442,6.23241108,167.67,167.58,6.6019]
[1717111563645,45.0,167.66,167.58,6.6019]
[1717111573867,6.2240845,167.65,167.58,6.6019]
[1717111575572,6.2240845,167.65,167.58,8.690618]
[1717111576460,6.2240845,167.65,167.58,6.6019]
[1717111606491,18.9149445,167.64,167.58,6.6019]
[1717111617088,6.2240845,167.65,167.58,6.6019]
[1717111617275,25.139029,167.65,167.58,6.6019]
[1717111622803,6.2240845,167.65,167.58,6.6019]
[1717111627294,6.2240845,167.65,167.59,15.3323]
[1717111627501,6.2240845,167.65,167.55,6.039]
[1717111627705,6.2240845,167.65,167.57,6.039]
[1717111628008,6.2240845,167.65,167.59,6.039]
[1717111640627,18.9149445,167.73,167.59,6.039]
[1717111640807,18.9149445,167.73,167.58,15.782]
[1717111640808,18.9149445,167.73,167.6,16.4074]
[1717111641004,18.9149445,167.73,167.61,6.3177]
[1717111642037,6.21787501,167.74,167.61,6.3177]
[1717111642331,6.21787501,167.74,167.63,6.3177]
[1717111644402,0.777514,167.79,167.64,15.8721]
[1717111644602,6.99481914,167.79,167.65,6.1506]
[1717111645208,6.99481914,167.79,167.66,15.8721]
[1717111653636,45.0,167.78,167.66,15.8721]
[1717111654334,45.0,167.78,167.67,6.3269]
[1717111655031,6.21895002,167.77,167.67,6.3269]
[1717111659235,25.13389452,167.77,167.67,6.3269]
[1717111662034,45.0,167.76,167.67,6.3269]
[1717111665334,6.21971146,167.75,167.67,6.3269]
[1717111666625,63.9149445,167.76,167.67,6.3269]
[1717111676737,6.21832849,167.75,167.67,6.3269]
[1717111679132,6.21832849,167.75,167.69,6.2034]
[1717111721189,6.21832849,167.75,167.69,6.051]
[1717111723186,45.0,167.74,167.61,16.2962]
[1717111723888,6.21833852,167.73,167.61,16.2962]
[1717111724391,6.21833852,167.73,167.63,16.2962]
[1717111729887,45.0,167.72,167.63,16.2962]
[1717111730090,17.2038567,167.71,167.63,16.2962]
[1717111730267,45.0,167.7,167.62,6.0207]
[1717111730883,45.0,167.71,167.62,6.0207]
[1717111734086,18.9149445,167.7,167.62,6.0207]
[1717111734393,45.0,167.69,167.62,6.0207]
[1717111737903,63.9149445,167.69,167.62,6.0207]
[1717111744802,6.22122758,167.68,167.62,6.0207]
[1717111747684,6.22122758,167.68,167.53,60.0]
[1717111747891,6.22122758,167.68,167.66,21.5465]
[1717111749000,6.22122758,167.68,167.67,22.7598]
[1717111749198,18.9149445,167.72,167.68,6.5611]
[1717111749404,6.21968199,167.71,167.68,6.5306]
[1717111754717,6.21968199,167.71,167.67,16.4193]
[1717111754718,6.21968199,167.71,167.64,6.1257]
[1717111755211,45.0,167.7,167.64,6.1257]
[1717111755818,63.9149445,167.7,167.64,6.1257]
[1717111759817,6.21565157,167.69,167.64,6.1257]
[1717111759997,45.0,167.68,167.64,6.1257]
[1717111763425,45.0,167.68,167.51,2.2088]
[1717111767522,25.13059607,167.69,167.52,80.1086]
[1717111773819,18.9149445,167.69,167.55,60.0]
[1717111774021,18.9149445,167.72,167.55,60.0]
[1717111774323,25.12889035,167.72,167.55,60.0]
[1717111774712,25.12889035,167.72,167.56,7.16711875]
[1717111774916,25.12889035,167.72,167.55,60.0]
[1717111775127,25.12889035,167.72,167.56,7.16700874]
[1717111775516,25.12889035,167.72,167.55,60.0]
[1717111775842,25.12889035,167.72,167.57,6.6662]
[1717111779922,25.12889035,167.72,167.58,15.4604]
[1717111781411,6.21394585,167.72,167.58,15.4604]
[1717111800550,6.21394585,167.72,167.58,17.6682]
[1717111802551,6.21394585,167.72,167.58,15.4604]
[1717111805255,45.0,167.71,167.57,6.6662]
[1717111806066,6.21166729,167.7,167.57,6.6662]
[1717111806363,25.12661179,167.7,167.57,6.6662]
[1717111806567,45.1829,167.69,167.57,6.6662]
[1717111809651,45.1829,167.69,167.58,1.19280553]
[1717111810341,45.1829,167.69,167.58,2.38621419]
[1717111814148,45.1829,167.69,167.55,2.38621419]
[1717111814345,45.1829,167.69,167.54,15.4604]
[1717111816256,6.20913128,167.68,167.54,15.4604]
[1717111816453,6.20913128,167.68,167.55,1.40286215]
[1717111817249,25.12407578,167.68,167.55,1.40286215]
[1717111818648,25.12407578,167.68,167.54,15.4604]
[1717111820475,25.12407578,167.68,167.55,7.16754577]
[1717111820663,25.12407578,167.68,167.54,15.4604]
[1717111821770,25.12407578,167.68,167.54,33.3604]
[1717111821955,18.9149445,167.68,167.54,33.3604]
[1717111822857,18.9149445,167.68,167.55,60.0]
[1717111824269,0.1829,167.69,167.55,60.0]
[1717111825560,0.1829,167.69,167.54,33.3604]
[1717111829958,0.1829,167.69,167.54,15.4604]
[1717111838766,0.1829,167.69,167.54,17.6688]
[1717111839095,0.1829,167.69,167.55,62.2082]
[1717111839463,0.1829,167.69,167.55,60.0]
[1717111839876,0.1829,167.69,167.54,35.5687]
[1717111840078,0.1829,167.69,167.55,7.16736263]
[1717111840279,0.1829,167.69,167.56,7.16736263]
[1717111840574,0.1829,167.69,167.54,15.4604]
[1717111840983,0.1829,167.69,167.55,7.16736263]
[1717111841189,0.1829,167.69,167.54,15.4604]
[1717111842483,0.1829,167.69,167.53,6.1496]
[1717111842790,6.20694908,167.68,167.53,6.1496]
[1717111842997,0.1829,167.67,167.53,6.1496]
[1717111845480,0.1829,167.67,167.53,2.2085]
[1717111846496,0.1829,167.67,167.54,2.38628539]
[1717111846798,0.1829,167.67,167.55,2.38614296]
[1717111846999,0.1829,167.67,167.54,2.38628809]
[1717111847298,0.1829,167.67,167.49,100.4886]
[1717111847299,0.1829,167.67,167.49,33.70220627]
[1717111847479,0.1829,167.66,167.5,7.1692419]
[1717111847686,0.1829,167.66,167.5,2.2089]
[1717111850994,0.1829,167.66,167.51,69.37766157]
[1717111851198,0.1829,167.66,167.51,62.2087]
[1717111851695,0.1829,167.66,167.51,60.0]
[1717111851897,0.1829,167.66,167.52,7.16849715]
[1717111852104,0.1829,167.66,167.51,60.0]
[1717111852305,0.1829,167.66,167.51,77.9]
[1717111853083,6.38966692,167.66,167.51,77.9]
[1717111853583,6.38966692,167.66,167.51,17.9]
[1717111855692,6.38966692,167.66,167.5,17.9]
[1717111855891,6.38966692,167.66,167.51,7.16869701]
[1717111856091,6.38966692,167.66,167.5,17.9]
[1717111856296,6.38966692,167.66,167.51,7.1688813]
[1717111856498,6.38966692,167.66,167.5,17.9]
[1717111856698,6.38966692,167.66,167.51,7.16882757]
[1717111857009,6.38966692,167.66,167.5,17.9]
[1717111857227,0.1829,167.65,167.51,7.16879981]
[1717111857519,0.1829,167.65,167.52,7.16846553]
[1717111857724,0.1829,167.65,167.53,7.16846553]
[1717111857891,0.1829,167.65,167.49,102.6976]
[1717111858096,0.1829,167.65,167.5,7.16831113]
[1717111858313,0.1829,167.65,167.51,7.16831113]
[1717111858517,0.1829,167.65,167.49,102.6976]
[1717111858699,0.1829,167.65,167.5,7.16906601]
[1717111859015,0.1829,167.65,167.49,102.6976]
[1717111859221,0.1829,167.65,167.5,7.16907156]
[1717111859516,0.1829,167.65,167.49,102.6976]
[1717111859815,0.1829,167.65,167.5,7.16907039]
[1717111860002,0.1829,167.65,167.49,102.6976]
[1717111860203,0.1829,167.65,167.5,7.16907039]
[1717111860415,0.1829,167.65,167.5,2.2089]
[1717111860616,0.1829,167.65,167.49,80.109]
[1717111860824,0.1829,167.65,167.5,7.16907167]
[1717111861117,0.1829,167.65,167.49,2.209]
[1717111861291,0.1829,167.65,167.5,7.16918003]
[1717111861496,0.1829,167.65,167.49,80.73531202]
[1717111861697,0.1829,167.65,167.5,7.16918002]
[1717111861906,0.1829,167.65,167.49,80.109]
[1717111862123,0.1829,167.65,167.5,7.16921127]
[1717111862417,0.1829,167.65,167.49,80.109]
[1717111862619,0.1829,167.65,167.5,7.16909732]
[1717111862808,0.1829,167.65,167.5,2.2089]
[1717111862998,0.1829,167.65,167.49,80.109]
[1717111863198,0.1829,167.65,167.5,7.16907039]
[1717111863403,6.20622439,167.64,167.49,2.209]
[1717111863614,0.1829,167.63,167.5,7.16922482]
[1717111863813,0.1829,167.63,167.49,2.209]
[1717111863998,0.1829,167.63,167.5,7.16918812]
[1717111864314,0.1829,167.63,167.5,77.9]
[1717111864516,0.1829,167.63,167.53,2.2085]
[1717111864818,0.1829,167.63,167.54,62.2083]
[1717111865041,0.1829,167.63,167.54,80.1083]
[1717111866505,0.1829,167.63,167.54,77.9]
[1717111866715,0.1829,167.63,167.56,60.0]
[1717111867595,0.1829,167.67,167.56,77.9]
[1717111867824,0.1829,167.67,167.58,80.1078]
[1717111868031,0.1829,167.67,167.59,0.29815985]
[1717111868500,0.1829,167.72,167.61,80.1074]
[1717111868716,0.1829,167.72,167.62,0.29822998]
[1717111869014,0.1829,167.72,167.63,60.0]
[1717111869218,0.1829,167.76,167.64,0.2981944]
[1717111870297,0.1829,167.76,167.65,60.0]
[1717111870499,0.1829,167.76,167.66,0.29825406]
[1717111871509,0.1829,167.76,167.66,18.19825406]
[1717111874607,0.777514,167.79,167.66,18.19825406]
[1717111875340,0.777514,167.79,167.66,0.29825406]
[1717111875924,0.777514,167.79,167.62,8.3603]
[1717111876796,0.777514,167.79,167.62,6.153]
[1717111877419,19.6924585,167.79,167.62,6.153]
[1717111879111,0.1829,167.78,167.62,6.153]
[1717111879424,0.1829,167.78,167.59,62.2077]
[1717111879626,0.1829,167.77,167.59,2.2077]
[1717111882226,6.20713861,167.76,167.59,2.2077]
[1717111883434,0.1829,167.75,167.59,2.2077]
[1717111884120,0.1829,167.75,167.6,2.2076]
[1717111884511,0.1829,167.75,167.58,6.0827]
[1717111885332,0.1829,167.75,167.57,253.2]
[1717111885830,0.1829,167.74,167.55,2.2082]
[1717111886832,0.1829,167.74,167.56,1.19278153]
[1717111887037,0.1829,167.74,167.55,1.19278153]
[1717111887214,0.1829,167.74,167.52,634.1]
[1717111887415,0.1829,167.74,167.52,253.2]
[1717111891130,18.9149445,167.73,167.54,62.2083]
[1717111891322,0.1829,167.72,167.54,62.2083]
[1717111892042,0.1829,167.72,167.55,2.2082]
[1717111892244,0.1829,167.72,167.56,0.98419148]
[1717111892543,6.20722346,167.71,167.56,0.98419148]
[1717111893117,6.20722346,167.71,167.56,81.09229148]
[1717111893438,0.1829,167.72,167.56,87.62499148]
[1717111894124,0.1829,167.72,167.57,2.208]
[1717111894323,0.1829,167.72,167.58,0.98407402]
[1717111894843,0.1829,167.72,167.58,1.39643987]
[1717111896945,0.1829,167.72,167.58,63.60423987]
[1717111897646,0.1829,167.72,167.58,61.39643987]
[1717111901227,0.1829,167.72,167.58,63.60423987]
[1717111901648,0.1829,167.72,167.58,3.60423987]
[1717111903555,0.1829,167.72,167.58,2.2078]
[1717111905158,0.1829,167.72,167.56,6.5327]
[1717111906158,0.1829,167.72,167.55,17.9]
[1717111906349,6.39028814,167.72,167.56,7.16527154]
[1717111906546,6.39028814,167.72,167.56,9.37327154]
[1717111906855,0.1829,167.71,167.56,2.208]
[1717111907155,0.1829,167.71,167.56,2.2081]
[1717111910235,0.1829,167.71,167.57,7.16536031]
[1717111911560,0.1829,167.71,167.56,2.2081]
[1717111911856,0.1829,167.71,167.57,67.16531465]
[1717111912066,0.1829,167.71,167.57,60.0]
[1717111912246,0.1829,167.71,167.58,7.16531465]
[1717111912443,0.1829,167.71,167.57,77.9]
[1717111912670,0.1829,167.71,167.58,7.16531338]
[1717111912850,0.1829,167.71,167.57,80.1079]
[1717111913051,0.1829,167.71,167.58,7.16531465]
[1717111913254,0.1829,167.71,167.57,80.1079]
[1717111913559,0.1829,167.71,167.58,7.1653091]
[1717111913768,0.1829,167.71,167.57,80.1079]
[1717111913958,0.1829,167.71,167.58,7.16530783]
[1717111914140,0.1829,167.71,167.57,80.1079]
[1717111914337,0.1829,167.71,167.58,7.16531465]
[1717111914553,0.1829,167.71,167.57,80.1079]
[1717111914762,0.1829,167.71,167.58,7.16531338]
[1717111914962,0.1829,167.71,167.57,80.1079]
[1717111915265,0.1829,167.71,167.58,7.16531465]
[1717111915464,0.1829,167.71,167.57,80.1079]
[1717111915760,0.1829,167.71,167.58,7.16531338]
[1717111915954,0.1829,167.71,167.57,80.1079]
[1717111916148,0.1829,167.71,167.58,7.16531465]
[1717111916364,0.1829,167.71,167.57,80.1079]
[1717111916666,0.1829,167.71,167.58,7.16531465]
[1717111916855,0.1829,167.71,167.58,17.9]
[1717111918269,0.1829,167.71,167.59,7.16531338]
[1717111918461,0.1829,167.71,167.58,17.9]
[1717111918652,0.1829,167.71,167.59,7.16531338]
[1717111918862,0.1829,167.71,167.58,17.9]
[1717111919173,0.1829,167.71,167.59,7.16531211]
[1717111919358,0.1829,167.71,167.58,17.9]
[1717111919551,0.1829,167.71,167.59,7.16531207]
[1717111919747,0.1829,167.71,167.58,17.9]
[1717111919948,0.1829,167.71,167.59,7.16531207]
[1717111920277,0.1829,167.71,167.58,17.9]
[1717111920457,0.1829,167.71,167.59,7.16531207]
[1717111920653,0.1829,167.71,167.58,17.9]
[1717111920967,0.1829,167.71,167.59,7.16531334]
[1717111921174,0.1829,167.71,167.58,17.9]
[1717111921472,0.1829,167.71,167.59,7.16531207]
[1717111921645,0.1829,167.71,167.6,7.16531207]
[1717111921841,0.1829,167.71,167.58,17.9]
[1717111922071,0.1829,167.71,167.59,7.1653077]
[1717111922267,0.1829,167.71,167.6,7.1653077]
[1717111922469,0.1829,167.71,167.61,7.1653077]
[1717111922769,0.1829,167.71,167.56,2.2081]
[1717111923067,0.1829,167.71,167.57,7.16489665]
[1717111923268,0.1829,167.71,167.58,7.16489665]
[1717111923478,0.1829,167.71,167.59,7.16489665]
[1717111923772,0.1829,167.71,167.6,7.16489665]
[1717111923953,0.1829,167.71,167.57,2.208]
[1717111924270,0.1829,167.71,167.58,7.16531701]
[1717111924451,0.1829,167.71,167.59,7.16531701]
[1717111924652,0.1829,167.71,167.6,7.16531701]
[1717111924971,0.1829,167.71,167.57,2.208]
[1717111925157,0.1829,167.71,167.58,7.1653132]
[1717111925364,0.1829,167.71,167.59,7.1653132]
[1717111925555,0.1829,167.71,167.6,7.1653132]
[1717111925761,0.1829,167.71,167.57,2.208]
[1717111925942,0.1829,167.71,167.58,7.16531147]
[1717111926144,0.1829,167.71,167.59,7.16531147]
[1717111926343,0.1829,167.71,167.6,7.16531147]
[1717111926569,0.1829,167.71,167.55,60.0]
[1717111926570,0.1829,167.71,167.53,60.0]
[1717111926869,0.1829,167.69,167.54,7.16546311]
[1717111927081,0.1829,167.69,167.56,2.2081]
[1717111927259,0.1829,167.69,167.57,7.16546311]
[1717111927463,0.1829,167.69,167.58,7.16546311]
[1717111927772,0.1829,167.69,167.59,7.16546311]
[1717111927970,0.1829,167.69,167.6,7.16546311]
[1717111928171,0.1829,167.69,167.56,2.2081]
[1717111928377,0.1829,167.69,167.57,7.16536272]
[1717111928579,0.1829,167.69,167.58,7.16536272]
[1717111928881,0.1829,167.69,167.59,7.16536272]
[1717111929072,0.1829,167.69,167.6,7.16536272]
[1717111929278,0.1829,167.69,167.56,2.2081]
[1717111929467,0.1829,167.69,167.57,7.16536272]
[1717111929669,0.1829,167.69,167.58,7.16536272]
[1717111929878,0.1829,167.69,167.59,7.16536272]
[1717111930169,0.1829,167.69,167.6,7.16536272]
[1717111930367,0.1829,167.69,167.55,2.2082]